fUST/lending_fUST_20240218
["ID","MTS","AMOUNT","RATE_DAILY","PERIOD"]
[314348332,1708212639499,-500.0,0.00027397,2]
[314348334,1708212639508,-502.07893506,0.00027397,2]
[314348336,1708212639518,-500.0,0.00027397,2]
[314348338,1708212639529,-500.0,0.0002767,2]
[314348340,1708212639538,-500.0,0.0002767,2]
[314348342,1708212639548,-250.35127859,0.0002767,2]
[314348344,1708212639558,-500.0,0.0002767,2]
[314348346,1708212639567,-500.0,0.0002767,2]
[314348348,1708212639576,-340.47838213,0.0002767,2]
[314348350,1708212639585,-500.0,0.00027671,2]
[314348352,1708212639594,-500.0,0.00027671,2]
[314348354,1708212639603,-558.77,0.00027671,2]
[314348356,1708212639612,-500.0,0.00027671,2]
[314348358,1708212639621,-500.0,0.00027671,2]
[314348360,1708212639631,-500.0,0.00027671,2]
[314348362,1708212639640,-649.98,0.00027671,2]
[314348364,1708212639649,-500.0,0.00027671,2]
[314348366,1708212639658,-500.0,0.00027671,2]
[314348368,1708212639667,-444.72726313,0.00027671,2]
[314348370,1708212639677,-2481.03,0.00027671,2]
[314348372,1708212639687,-1881.14,0.00027671,2]
[314348374,1708212639696,-3730.18,0.00027671,2]
[314348376,1708212639705,-567.36,0.00027671,2]
[314348378,1708212639716,-500.0,0.00027671,2]
[314348380,1708212639725,-500.0,0.00027671,2]
[314348382,1708212639734,-500.0,0.00027671,2]
[314348384,1708212639744,-500.0,0.00027671,2]
[314348386,1708212639753,-500.0,0.00027671,2]
[314348388,1708212639762,-500.0,0.00027671,2]
[314348390,1708212639772,-500.0,0.00027671,2]
[314348392,1708212639781,-670.91,0.00027671,2]
[314348394,1708212639790,-1981.95,0.00027671,2]
[314348396,1708212639800,-373.26188609,0.00027671,2]
[314348444,1708212643664,-2867.08825522,0.00027397,2]
[314348446,1708212643676,-415.53174478,0.00027397,2]
[314348448,1708212643686,-2470.33410683,0.00027671,2]
[314348454,1708212646796,-628.869997,0.00027671,2]
[314348455,1708212646812,-202.70401008,0.00027671,2]
[314348456,1708212646822,-1825.98,0.00027671,2]
[314348457,1708212646831,-500.0,0.00027671,2]
[314348458,1708212646840,-697.15,0.00027671,2]
[314348459,1708212646850,-554.81,0.00027671,2]
[314348460,1708212646859,-500.0,0.00027671,2]
[314348461,1708212646869,-500.0,0.00027671,2]
[314348462,1708212646878,-500.0,0.00027671,2]
[314348463,1708212646888,-465.3751853,0.00027671,2]
[314348464,1708212646900,-34.6248147,0.00027671,2]
[314348465,1708212646909,-500.0,0.00027671,2]
[314348466,1708212646919,-500.0,0.00027671,2]
[314348467,1708212646929,-500.0,0.00027671,2]
[314348468,1708212646938,-298.52473542,0.00027671,2]
[314348469,1708212646951,-201.47526458,0.00027671,2]
[314348470,1708212646960,-500.0,0.00027671,2]
[314348471,1708212646970,-3282.62,0.00027671,2]
[314348472,1708212646979,-1857.67072182,0.000279,2]
[314348473,1708212646988,-500.0,0.00027945,2]
[314348474,1708212646998,-500.0,0.00027945,2]
[314348475,1708212647008,-558.77,0.00027945,2]
[314348476,1708212647018,-500.0,0.00027945,2]
[314348477,1708212647027,-500.0,0.00027945,2]
[314348478,1708212647036,-224.5,0.00027945,2]
[314348479,1708212647046,-500.0,0.00027945,2]
[314348480,1708212647055,-1086.5024714,0.00027945,2]
[314348481,1708213538369,-182.3,0.00031634,35]
[314348482,1708213538392,-150.5,0.00031635,35]
[314348483,1708213538413,-150.5,0.00031644,35]
[314348484,1708213538435,-31.75,0.00031645,35]
[314348485,1708213538547,-118.75,0.00031645,35]
[314348486,1708213538570,-205.1,0.00031646,35]
[314348505,1708213831825,-273.54659754,0.00024185,2]
[314348506,1708213831836,-261.89182044,0.00024185,2]
[314348545,1708213837834,-3296.76970545,0.00024185,2]
[314348547,1708213837843,-12736.24193454,0.00024186,2]
[314348552,1708213837887,-12163.75806546,0.00024186,2]
[314348554,1708213837896,-166.65831571,0.00024216,2]
[314348556,1708213837906,-693.8749224,0.00024316,2]
[314348558,1708213837915,-166.794774,0.00024658,2]
[314348560,1708213837924,-19575.05410638,0.00025142,2]
[314348562,1708213837933,-3333.69665803,0.00025142,2]
[314348564,1708213837942,-1494.84850685,0.00025142,2]
[314348566,1708213837951,-12323.89427303,0.00025142,2]
[314348568,1708213837961,-1849.32010302,0.00025571,2]
[314348570,1708213837969,-166.794774,0.00025744,2]
[314348571,1708213837979,-166.65831569,0.0002606,3]
[314348573,1708213837987,-166.794774,0.00026831,2]
[314348575,1708213837997,-160.88802508,0.00027206,2]
[314348577,1708213838005,-1935.08,0.00027276,3]
[314348579,1708213838015,-2902.61,0.00027286,3]
[314348581,1708213838024,-3483.13,0.00027296,3]
[314348583,1708213838033,-2902.61,0.00027296,3]
[314348585,1708213838042,-4825.59023089,0.00027306,3]
[314348587,1708213838051,-1013.37394849,0.00027306,2]
[314348589,1708213838060,-12442.07649851,0.00027306,3]
[314348591,1708213838069,-708.13,0.00027386,3]
[314348593,1708213838078,-204.49759801,0.00027396,2]
[314348595,1708213838087,-500.0,0.00027396,2]
[314348597,1708213838095,-500.0,0.00027396,2]
[314348599,1708213838104,-500.0,0.00027396,2]
[314348601,1708213838113,-500.0,0.00027396,2]
[314348603,1708213838122,-500.0,0.00027396,2]
[314348604,1708213838131,-380.0787196,0.00027396,2]
[314348606,1708213838140,-460.78879688,0.00027396,2]
[314348608,1708213838149,-221.81971649,0.00027396,2]
[314348610,1708213838158,-634.18700132,0.00027396,2]
[314348612,1708213838167,-500.0,0.00027396,2]
[314348614,1708213838176,-500.0,0.00027396,2]
[314348616,1708213838185,-300.0,0.00027396,2]
[314348618,1708213838194,-500.0,0.00027396,2]
[314348620,1708213838203,-500.0,0.00027396,2]
[314348622,1708213838212,-363.54460331,0.00027396,2]
[314348624,1708213838220,-279.76602728,0.00027396,2]
[314348626,1708213838229,-500.0,0.00027396,2]
[314348628,1708213838238,-500.0,0.00027396,2]
[314348630,1708213838248,-500.0,0.00027396,2]
[314348632,1708213838258,-500.0,0.00027396,2]
[314348634,1708213838267,-500.0,0.00027396,2]
[314348636,1708213838276,-300.0,0.00027396,2]
[314348638,1708213838285,-500.0,0.00027396,2]
[314348640,1708213838294,-500.0,0.00027396,2]
[314348642,1708213838304,-500.0,0.00027396,2]
[314348644,1708213838313,-477.84535654,0.00027396,2]
[314348646,1708213838322,-500.0,0.00027396,2]
[314348648,1708213838331,-500.0,0.00027396,2]
[314348650,1708213838340,-404.78382122,0.00027396,2]
[314348652,1708213838349,-500.0,0.00027396,2]
[314348654,1708213838358,-500.0,0.00027396,2]
[314348656,1708213838367,-500.0,0.00027396,2]
[314348658,1708213838375,-500.0,0.00027396,2]
[314348660,1708213838385,-500.0,0.00027396,2]
[314348662,1708213838394,-250.0,0.00027396,2]
[314348664,1708213838403,-500.0,0.00027396,2]
[314348665,1708213838412,-345.22990015,0.00027396,2]
[314348667,1708213838422,-500.0,0.00027396,2]
[314348668,1708213838431,-500.0,0.00027396,2]
[314348669,1708213838441,-500.0,0.00027396,2]
[314348670,1708213838450,-525.30971961,0.00027397,2]
[314348672,1708213838459,-1000.0,0.00027397,2]
[314348673,1708213838468,-502.88903493,0.00027397,2]
[314348675,1708213838477,-504.0168972,0.00027397,2]
[314348676,1708213838487,-759.54,0.00027397,2]
[314348677,1708213838496,-500.0,0.00027397,2]
[314348678,1708213838505,-500.0,0.00027397,2]
[314348679,1708213838514,-500.0,0.00027397,2]
[314348680,1708213838523,-503.608474,0.00027397,2]
[314348681,1708213838532,-630.28434313,0.00027397,2]
[314348682,1708213838541,-500.0,0.00027397,2]
[314348683,1708213838551,-500.0,0.00027397,2]
[314348684,1708213838560,-500.0,0.00027397,2]
[314348685,1708213838569,-513.90277996,0.00027397,2]
[314348686,1708213838578,-500.28,0.00027397,2]
[314348687,1708213838587,-500.0,0.00027397,2]
[314348688,1708213838596,-500.0,0.00027397,2]
[314348689,1708213838605,-159.3469226,0.00027397,2]
[314348690,1708213838614,-505.48477638,0.00027397,2]
[314348691,1708213838623,-500.0,0.00027397,2]
[314348692,1708213838632,-233.06320751,0.00027397,2]
[314348693,1708213838642,-500.0,0.00027397,2]
[314348694,1708213838650,-500.0,0.00027397,2]
[314348695,1708213838659,-500.0,0.00027397,2]
[314348696,1708213838668,-541.41043922,0.00027397,2]
[314348697,1708213838677,-500.0,0.00027397,2]
[314348698,1708213838686,-500.0,0.00027397,2]
[314348699,1708213838694,-500.0,0.00027397,2]
[314348700,1708213838703,-500.0,0.00027397,2]
[314348701,1708213838712,-503.5333913,0.00027397,2]
[314348702,1708213838721,-500.0,0.00027397,2]
[314348703,1708213838741,-500.0,0.00027397,2]
[314348704,1708213838750,-500.0,0.00027397,2]
[314348705,1708213838760,-500.0,0.00027397,2]
[314348706,1708213838769,-155.0,0.00027397,2]
[314348707,1708213838779,-500.0,0.00027397,2]
[314348708,1708213838788,-500.0,0.00027397,2]
[314348709,1708213838801,-500.0,0.00027397,2]
[314348710,1708213838810,-500.0,0.00027397,2]
[314348711,1708213838820,-505.20829705,0.00027397,2]
[314348712,1708213838829,-614.45,0.00027397,2]
[314348713,1708213838838,-500.0,0.00027397,2]
[314348714,1708213838848,-500.0,0.00027397,2]
[314348715,1708213838857,-580.12,0.00027397,2]
[314348716,1708213838867,-500.0,0.00027397,2]
[314348717,1708213838878,-515.02886882,0.00027397,2]
[314348718,1708213838888,-500.0,0.00027397,2]
[314348719,1708213838897,-213.620589,0.00027397,2]
[314348720,1708213838907,-500.0,0.00027397,2]
[314348721,1708213838917,-500.0,0.00027397,2]
[314348722,1708213838926,-500.0,0.00027397,2]
[314348723,1708213838935,-500.0,0.00027397,2]
[314348724,1708213838946,-500.0,0.00027397,2]
[314348725,1708213838955,-500.0,0.00027397,2]
[314348726,1708213838965,-500.0,0.00027397,2]
[314348727,1708213838975,-500.0,0.00027397,2]
[314348728,1708213838984,-500.0,0.00027397,2]
[314348729,1708213838994,-510.91394851,0.00027397,2]
[314348730,1708213839003,-500.0,0.00027397,2]
[314348731,1708213839012,-500.0,0.00027397,2]
[314348732,1708213839022,-518.39092521,0.00027397,2]
[314348733,1708213839031,-2388.3,0.00027397,2]
[314348734,1708213839040,-514.68968925,0.00027397,2]
[314348735,1708213839050,-507.35627239,0.00027397,2]
[314348736,1708213839059,-506.26113959,0.00027397,2]
[314348737,1708213839069,-205.90526803,0.00027397,2]
[314348738,1708213839078,-500.0,0.00027397,2]
[314348739,1708213839087,-409.31389661,0.00027397,2]
[314348740,1708213839096,-500.0,0.00027397,2]
[314348741,1708213839106,-500.0,0.00027397,2]
[314348742,1708213839115,-500.0,0.00027397,2]
[314348743,1708213839124,-500.0,0.00027397,2]
[314348744,1708213839133,-500.0,0.00027397,2]
[314348745,1708213839143,-500.0,0.00027397,2]
[314348746,1708213839152,-500.0,0.00027397,2]
[314348747,1708213839161,-500.0,0.00027397,2]
[314348748,1708213839170,-500.0,0.00027397,2]
[314348749,1708213839180,-500.0,0.00027397,2]
[314348750,1708213839189,-500.0,0.00027397,2]
[314348751,1708213839198,-500.0,0.00027397,2]
[314348752,1708213839208,-4384.1,0.00027397,2]
[314348753,1708213839217,-295.71638465,0.00027397,2]
[314348754,1708213839226,-500.0,0.00027397,2]
[314348755,1708213839236,-521.77890812,0.00027397,2]
[314348756,1708213839245,-500.0,0.00027397,2]
[314348757,1708213839255,-515.5926754,0.00027397,2]
[314348758,1708213839265,-500.0,0.00027397,2]
[314348759,1708213839274,-764.56,0.00027397,2]
[314348760,1708213839283,-2339.91,0.00027397,2]
[314348761,1708213839292,-334.40704858,0.00027397,2]
[314348762,1708213839302,-500.0,0.00027397,2]
[314348763,1708213839312,-201.60696165,0.00027397,2]
[314348764,1708213839321,-508.21353063,0.00027397,2]
[314348765,1708213839331,-2424.82,0.00027397,2]
[314348766,1708213839340,-500.0,0.00027397,2]
[314348767,1708213839350,-235.1436002,0.00027397,2]
[314348768,1708213839359,-500.0,0.00027397,2]
[314348769,1708213839368,-500.0,0.00027397,2]
[314348770,1708213839378,-500.0,0.00027397,2]
[314348771,1708213839387,-545.80339716,0.00027397,2]
[314348772,1708213839396,-500.0,0.00027397,2]
[314348773,1708213839405,-500.0,0.00027397,2]
[314348774,1708213839514,-500.0,0.00027397,2]
[314348775,1708213839523,-814.05,0.00027397,2]
[314348776,1708213839532,-500.0,0.00027397,2]
[314348777,1708213839542,-500.0,0.00027397,2]
[314348778,1708213839551,-500.0,0.00027397,2]
[314348779,1708213839560,-500.0,0.00027397,2]
[314348780,1708213839569,-4438.86,0.00027397,2]
[314348781,1708213839578,-503.15360928,0.00027397,2]
[314348782,1708213839587,-500.0,0.00027397,2]
[314348783,1708213839596,-851.8,0.00027397,2]
[314348784,1708213839604,-500.0,0.00027397,2]
[314348785,1708213839613,-500.0,0.00027397,2]
[314348786,1708213839622,-500.0,0.00027397,2]
[314348787,1708213839631,-508.99933292,0.00027397,2]
[314348788,1708213839640,-500.0,0.00027397,2]
[314348789,1708213839649,-500.0,0.00027397,2]
[314348790,1708213839657,-500.0,0.00027397,2]
[314348791,1708213839666,-500.0,0.00027397,2]
[314348792,1708213839675,-500.0,0.00027397,2]
[314348793,1708213839684,-500.0,0.00027397,2]
[314348794,1708213839693,-506.99496205,0.00027397,2]
[314348795,1708213839703,-500.0,0.00027397,2]
[314348796,1708213839711,-500.0,0.00027397,2]
[314348797,1708213839720,-500.0,0.00027397,2]
[314348798,1708213839730,-503.66728469,0.00027397,2]
[314348799,1708213839739,-525.27731322,0.00027397,2]
[314348800,1708213839748,-662.68,0.00027397,2]
[314348801,1708213839757,-542.42,0.00027397,2]
[314348802,1708213839767,-500.0,0.00027397,2]
[314348803,1708213839776,-505.65007809,0.00027397,2]
[314348804,1708213839785,-504.32224582,0.00027397,2]
[314348805,1708213839796,-500.0,0.00027397,2]
[314348806,1708213839805,-505.9151369,0.00027397,2]
[314348807,1708213839814,-500.0,0.00027397,2]
[314348808,1708213839823,-500.0,0.00027397,2]
[314348809,1708213839832,-500.0,0.00027397,2]
[314348810,1708213839841,-500.0,0.00027397,2]
[314348811,1708213839850,-500.0,0.00027397,2]
[314348812,1708213839859,-500.0,0.00027397,2]
[314348813,1708213839868,-500.0,0.00027397,2]
[314348814,1708213839877,-500.0,0.00027397,2]
[314348815,1708213839887,-500.0,0.00027397,2]
[314348816,1708213839896,-2884.08,0.00027397,2]
[314348817,1708213839905,-3897.83,0.00027397,2]
[314348818,1708213839914,-500.0,0.00027534,2]
[314348819,1708213839922,-33938.85509953,0.00027644,2]
[314348820,1708213839931,-1000.0,0.00027671,2]
[314348821,1708213839940,-759.54,0.00027671,2]
[314348822,1708213839949,-500.0,0.00027671,2]
[314348823,1708213839958,-501.06074641,0.00027671,2]
[314348824,1708213839967,-500.0,0.00027671,2]
[314348826,1708213839976,-500.0,0.00027671,2]
[314348827,1708213839984,-500.0,0.00027671,2]
[314348828,1708213839997,-500.28,0.00027671,2]
[314348829,1708213840036,-503.86860364,0.00027671,2]
[314348830,1708213840044,-500.0,0.00027671,2]
[314348831,1708213840053,-500.0,0.00027671,2]
[314348832,1708213840062,-506.45631732,0.00027671,2]
[314348833,1708213840071,-500.0,0.00027671,2]
[314348834,1708213840080,-617.51,0.00027671,2]
[314348835,1708213840089,-500.0,0.00027671,2]
[314348836,1708213840098,-500.0,0.00027671,2]
[314348837,1708213840107,-500.0,0.00027671,2]
[314348838,1708213840115,-500.0,0.00027671,2]
[314348839,1708213840124,-500.0,0.00027671,2]
[314348840,1708213840133,-500.0,0.00027671,2]
[314348841,1708213840142,-500.0,0.00027671,2]
[314348842,1708213840150,-466.09670805,0.00027671,2]
[314348843,1708213840159,-500.0,0.00027671,2]
[314348844,1708213840168,-500.0,0.00027671,2]
[314348845,1708213840177,-518.6324567,0.00027671,2]
[314348846,1708213840186,-614.45,0.00027671,2]
[314348847,1708213840194,-505.27612881,0.00027671,2]
[314348848,1708213840204,-580.12,0.00027671,2]
[314348849,1708213840212,-500.0,0.00027671,2]
[314348850,1708213840221,-500.0,0.00027671,2]
[314348851,1708213840230,-500.0,0.00027671,2]
[314348852,1708213840239,-500.00819368,0.00027671,2]
[314348853,1708213840248,-503.1545323,0.00027671,2]
[314348854,1708213840257,-500.0,0.00027671,2]
[314348855,1708213840266,-500.0,0.00027671,2]
[314348856,1708213840276,-500.0,0.00027671,2]
[314348857,1708213840285,-500.0,0.00027671,2]
[314348858,1708213840294,-500.0,0.00027671,2]
[314348859,1708213840303,-517.44050524,0.00027671,2]
[314348860,1708213840312,-2388.3,0.00027671,2]
[314348861,1708213840322,-500.0,0.00027671,2]
[314348862,1708213840331,-500.0,0.00027671,2]
[314348863,1708213840340,-500.0,0.00027671,2]
[314348864,1708213840349,-500.0,0.00027671,2]
[314348865,1708213840359,-500.0,0.00027671,2]
[314348866,1708213840368,-500.0,0.00027671,2]
[314348867,1708213840378,-500.0,0.00027671,2]
[314348868,1708213840387,-500.0,0.00027671,2]
[314348869,1708213840396,-500.0,0.00027671,2]
[314348870,1708213840405,-500.0,0.00027671,2]
[314348871,1708213840413,-500.0,0.00027671,2]
[314348872,1708213840423,-500.0,0.00027671,2]
[314348873,1708213840431,-4384.1,0.00027671,2]
[314348874,1708213840440,-500.0,0.00027671,2]
[314348875,1708213840449,-500.0,0.00027671,2]
[314348876,1708213840460,-500.0,0.00027671,2]
[314348877,1708213840469,-764.56,0.00027671,2]
[314348878,1708213840478,-2339.91,0.00027671,2]
[314348879,1708213840487,-500.0,0.00027671,2]
[314348880,1708213840496,-2424.82,0.00027671,2]
[314348881,1708213840505,-500.0,0.00027671,2]
[314348882,1708213840514,-500.0,0.00027671,2]
[314348883,1708213840523,-500.0,0.00027671,2]
[314348884,1708213840532,-500.0,0.00027671,2]
[314348885,1708213840542,-814.05,0.00027671,2]
[314348886,1708213840551,-500.0,0.00027671,2]
[314348887,1708213840560,-472.3,0.00027671,2]
[314348888,1708213840569,-506.76238936,0.00027671,2]
[314348889,1708213840578,-500.0,0.00027671,2]
[314348890,1708213840587,-4438.86,0.00027671,2]
[314348891,1708213840596,-500.0,0.00027671,2]
[314348892,1708213840605,-851.8,0.00027671,2]
[314348893,1708213840614,-500.0,0.00027671,2]
[314348894,1708213840624,-599.23315095,0.00027671,2]
[314348895,1708213840633,-500.0,0.00027671,2]
[314348896,1708213840642,-500.0,0.00027671,2]
[314348897,1708213840651,-500.0,0.00027671,2]
[314348898,1708213840660,-500.0,0.00027671,2]
[314348899,1708213840669,-500.0,0.00027671,2]
[314348900,1708213840678,-220.49128141,0.00027671,2]
[314348901,1708213840687,-500.0,0.00027671,2]
[314348902,1708213840696,-500.0,0.00027671,2]
[314348903,1708213840705,-662.68,0.00027671,2]
[314348904,1708213840714,-542.42,0.00027671,2]
[314348905,1708213840723,-506.1561853,0.00027671,2]
[314348906,1708213840732,-500.0,0.00027671,2]
[314348907,1708213840741,-500.0,0.00027671,2]
[314348908,1708213840750,-500.0,0.00027671,2]
[314348909,1708213840759,-500.0,0.00027671,2]
[314348910,1708213840768,-500.0,0.00027671,2]
[314348911,1708213840777,-500.0,0.00027671,2]
[314348912,1708213840786,-500.0,0.00027671,2]
[314348913,1708213840798,-500.0,0.00027671,2]
[314348914,1708213840807,-2884.08,0.00027671,2]
[314348915,1708213840816,-3897.83,0.00027671,2]
[314348916,1708213840824,-29680.33152701,0.00027744,5]
[314348917,1708213840833,-166.65831569,0.00027905,3]
[314348918,1708213840842,-166.794774,0.00027918,2]
[314348919,1708213840851,-1000.0,0.00027945,2]
[314348920,1708213840860,-759.54,0.00027945,2]
[314348921,1708213840870,-500.0,0.00027945,2]
[314348922,1708213840880,-500.0,0.00027945,2]
[314348924,1708213840889,-469.50533681,0.00027945,2]
[314348927,1708213840904,-500.0,0.00027945,2]
[314348929,1708213840918,-500.28,0.00027945,2]
[314348931,1708213840927,-507.25023719,0.00027945,2]
[314348932,1708213840936,-500.0,0.00027945,2]
[314348933,1708213840947,-500.0,0.00027945,2]
[314348934,1708213840956,-153.44114852,0.00027945,2]
[314348935,1708213840966,-500.0,0.00027945,2]
[314348936,1708213840975,-500.0,0.00027945,2]
[314348937,1708213840985,-504.01055325,0.00027945,2]
[314348938,1708213840994,-500.0,0.00027945,2]
[314348939,1708213841004,-180.24851023,0.00027945,2]
[314348940,1708213841013,-167.23199005,0.00027945,2]
[314348941,1708213841023,-505.50491521,0.00027945,2]
[314348942,1708213841032,-614.45,0.00027945,2]
[314348943,1708213841041,-580.12,0.00027945,2]
[314348944,1708213841051,-500.0,0.00027945,2]
[314348945,1708213841061,-500.0,0.00027945,2]
[314348946,1708213841070,-500.0,0.00027945,2]
[314348947,1708213841079,-500.0,0.00027945,2]
[314348948,1708213841089,-500.0,0.00027945,2]
[314348949,1708213841099,-500.0,0.00027945,2]
[314348950,1708213841109,-500.0,0.00027945,2]
[314348951,1708213841119,-2388.3,0.00027945,2]
[314348952,1708213841129,-500.0,0.00027945,2]
[314348953,1708213841138,-500.0,0.00027945,2]
[314348954,1708213841148,-500.0,0.00027945,2]
[314348955,1708213841158,-500.0,0.00027945,2]
[314348956,1708213841167,-500.0,0.00027945,2]
[314348957,1708213841176,-500.0,0.00027945,2]
[314348958,1708213841186,-500.0,0.00027945,2]
[314348959,1708213841196,-500.0,0.00027945,2]
[314348960,1708213841205,-500.0,0.00027945,2]
[314348961,1708213841214,-500.0,0.00027945,2]
[314348962,1708213841224,-500.0,0.00027945,2]
[314348963,1708213841234,-500.0,0.00027945,2]
[314348964,1708213841243,-4384.1,0.00027945,2]
[314348965,1708213841253,-500.0,0.00027945,2]
[314348966,1708213841262,-500.0,0.00027945,2]
[314348967,1708213841272,-500.0,0.00027945,2]
[314348968,1708213841281,-764.56,0.00027945,2]
[314348969,1708213841291,-2339.91,0.00027945,2]
[314348970,1708213841300,-500.0,0.00027945,2]
[314348971,1708213841310,-2424.82,0.00027945,2]
[314348972,1708213841319,-311.36704535,0.00027945,2]
[314348973,1708213841328,-814.05,0.00027945,2]
[314348974,1708213841339,-500.0,0.00027945,2]
[314348975,1708213841348,-500.0,0.00027945,2]
[314348976,1708213841358,-4438.86,0.00027945,2]
[314348977,1708213841367,-500.0,0.00027945,2]
[314348978,1708213841377,-851.8,0.00027945,2]
[314348979,1708213841386,-500.0,0.00027945,2]
[314348980,1708213841494,-500.0,0.00027945,2]
[314348981,1708213841503,-500.0,0.00027945,2]
[314348982,1708213841512,-500.0,0.00027945,2]
[314348983,1708213841522,-500.0,0.00027945,2]
[314348984,1708213841531,-500.0,0.00027945,2]
[314348985,1708213841541,-662.68,0.00027945,2]
[314348986,1708213841550,-542.42,0.00027945,2]
[314348987,1708213841559,-500.0,0.00027945,2]
[314348988,1708213841568,-500.0,0.00027945,2]
[314348989,1708213841577,-500.0,0.00027945,2]
[314348990,1708213841586,-500.0,0.00027945,2]
[314348991,1708213841595,-500.0,0.00027945,2]
[314348992,1708213841604,-500.0,0.00027945,2]
[314348993,1708213841613,-500.0,0.00027945,2]
[314348994,1708213841622,-2884.08,0.00027945,2]
[314348995,1708213841630,-3897.83,0.00027945,2]
[314348996,1708213841640,-155.0294556,0.00028,2]
[314348997,1708213841649,-5000.0,0.00028046,5]
[314348998,1708213841658,-273.813915,0.00028134,2]
[314348999,1708213841667,-223.913519,0.00028134,2]
[314349000,1708213841676,-194.933917,0.00028134,2]
[314349001,1708213841685,-163.954602,0.00028134,2]
[314349002,1708213841694,-195.840349,0.00028134,2]
[314349003,1708213841702,-252.024254,0.00028134,2]
[314349004,1708213841711,-273.813915,0.00028134,2]
[314349005,1708213841720,-185.972015,0.00028134,2]
[314349006,1708213841730,-185.972015,0.00028134,2]
[314349007,1708213841739,-273.813916,0.00028134,2]
[314349008,1708213841748,-321.611729,0.00028134,2]
[314349009,1708213841757,-223.913518,0.00028134,2]
[314349010,1708213841766,-264.42650796,0.00028219,2]
[314349011,1708213841775,-759.54,0.00028219,2]
[314349012,1708213841784,-500.0,0.00028219,2]
[314349013,1708213841794,-500.0,0.00028219,2]
[314349014,1708213841804,-500.0,0.00028219,2]
[314349015,1708213841813,-500.28,0.00028219,2]
[314349016,1708213841823,-500.0,0.00028219,2]
[314349017,1708213841831,-500.0,0.00028219,2]
[314349018,1708213841841,-500.0,0.00028219,2]
[314349019,1708213841850,-198.19669351,0.00028219,2]
[314349020,1708213841860,-295.36967243,0.00028219,2]
[314349021,1708213841870,-614.45,0.00028219,2]
[314349022,1708213841880,-580.12,0.00028219,2]
[314349023,1708213841890,-500.0,0.00028219,2]
[314349024,1708213841899,-500.0,0.00028219,2]
[314349025,1708213841908,-500.0,0.00028219,2]
[314349026,1708213841917,-500.0,0.00028219,2]
[314349027,1708213841926,-500.0,0.00028219,2]
[314349028,1708213841935,-410.34813149,0.00028219,2]
[314349029,1708213841945,-506.06743355,0.00028219,2]
[314349030,1708213841954,-2388.3,0.00028219,2]
[314349031,1708213841964,-500.0,0.00028219,2]
[314349032,1708213841972,-500.0,0.00028219,2]
[314349033,1708213841981,-500.0,0.00028219,2]
[314349034,1708213841990,-500.0,0.00028219,2]
[314349035,1708213841999,-416.38756066,0.00028219,2]
[314349036,1708213842009,-500.0,0.00028219,2]
[314349037,1708213842017,-500.0,0.00028219,2]
[314349038,1708213842026,-504.0187755,0.00028219,2]
[314349039,1708213842035,-500.0,0.00028219,2]
[314349040,1708213842044,-4384.1,0.00028219,2]
[314349041,1708213842053,-500.0,0.00028219,2]
[314349042,1708213842062,-500.0,0.00028219,2]